Cogmind - Beta 14 @@@ ROGUE MODE // 2025.03.14 @ 15:41:39 Player: canerib Result: Self-destructed Performance ------------- Evolutions (2) 1000 Regions Visited (4) 800 Robots Destroyed (14) 70 Value Destroyed (429) 429 Prototype IDs (1) 20 Alien Tech Used (0) 0 Bonus (0) 0 TOTAL SCORE: 2319 Bonus ------- None Cogmind --------- Core Integrity 430/550 Matter 300/300 Energy 100/100 System Corruption 3% Temperature Cool (0) Movement Treading (160) Location -8/Materials Parts ------- > --- POWER (1) -------- (None) > --- PROPULSION (4) --- Light Treads > --- UTILITY (3) ------ Small Storage Unit > --- WEAPON (3) ------- Makeshift Hammer Makeshift Spear > --- INVENTORY (8) ---- Improved Terrain Scanner Grenade Launcher Datajack Mining Laser Peak State ------------ > --- POWER ------------ Ion Engine > --- PROPULSION ------- Aluminum Leg Aluminum Leg > --- UTILITY ---------- Small Storage Unit Experimental Sensor Array > --- WEAPON ----------- Assault Rifle Assault Rifle > --- INVENTORY -------- Light Ion Engine Heat Sink Improved Terrain Scanner EM Pulse Gun Assault Rifle Grenade Launcher Datajack Mining Laser [Rating: 16] Favorites ----------- Power Ion Engine Engine Ion Engine Propulsion Aluminum Leg Treads Light Treads Leg Aluminum Leg Wheel Compact Wheel Utility Small Storage Unit Device Experimental Sensor Array Storage Small Storage Unit Weapon Assault Rifle Energy Gun EM Pulse Gun Ballistic Gun Assault Rifle Special Weapon Mining Laser Impact Weapon Makeshift Hammer Slashing Weapon Makeshift Sword Piercing Weapon Makeshift Spear Build | -11 -10 -10 -10 -8 ------- Run | Yrd Mat Min Sub Mat Slots Evolved 4 | . . . . 4 Power . | . . . . . Propulsion 2 | . . . . 2 Utility 1 | . . . . 1 Weapon 1 | . . . . 1 Parts Attached 27 | 8 2 5 10 2 Power 2 | 1 . 1 . . Engine 2 | 1 . 1 . . Core . | . . . . . Reactor . | . . . . . Propulsion 5 | 2 . 2 . 1 Treads 1 | . . . . 1 Leg 2 | . . 2 . . Wheel 2 | 2 . . . . Hover . | . . . . . Flight . | . . . . . Utility 7 | 2 . 2 3 . Device 6 | 1 . 2 3 . Storage 1 | 1 . . . . Processor . | . . . . . Hackware . | . . . . . Protection . | . . . . . Artifact . | . . . . . Weapon 13 | 3 2 . 7 1 Energy Gun 3 | 2 . . 1 . Energy Cannon . | . . . . . Ballistic Gun 5 | 1 2 . 2 . Ballistic Cannon . | . . . . . Launcher . | . . . . . Special Weapon 2 | . . . 2 . Impact Weapon 1 | . . . 1 . Slashing Weapon 1 | . . . 1 . Piercing Weapon 1 | . . . . 1 Special Melee Weapon . | . . . . . Unidentified Prototypes 1 | . . 1 . . Parts Lost 9 | . . . 8 1 Power 1 | . . . 1 . Propulsion 2 | . . . 2 . Utility 2 | . . . 2 . Weapon 4 | . . . 3 1 Highest Loss Streak 7 | . . . 7 1 To Critical Strikes . | . . . . . Average Slot Usage (%) 94 | . 98 99 91 34 Engine 12 | . 14 14 12 . Leg 22 | . . 25 23 . Wheel 2 | . 28 2 . . Device 12 | . 14 14 11 . Storage 13 | . 14 14 14 9 Ballistic Gun 24 | . 24 28 21 . Special Weapon 1 | . . . 2 . Peak Build Rating 16 | 9 9 16 16 13 Average Rating 12 | 6 8 14 12 11 On Entrance 8 | . 9 9 16 10 Naked Turns . | . . . . . Heaviest Build 16 | 12 13 15 16 12 Greatest Support 32 | 32 32 32 20 20 Greatest Overweight (x) 3 | . . 1 3 3 Average Overweight (x) . | . . . . 2 Largest Inventory Capacity 8 | 8 8 8 8 8 Average Capacity 7 | 7 8 8 8 8 Most Carried 8 | 5 8 8 8 4 Average Carried 7 | 2 6 7 7 4 Final Capacity 8 | 8 8 8 8 8 Final Carried 8 | 4 8 8 5 4 Class Distribution -------------------- 85% | Mutant 14% | Scavenger-Mutant Dominant Class ---------------- Mutant | -10/Materials Mutant | -10/Mines Mutant | -10/Subcaves Mutant | -8/Materials Resources | -11 -10 -10 -10 -8 ----------- Run | Yrd Mat Min Sub Mat Matter Collected 628 | 260 57 140 156 15 Remotely . | . . . . . Salvage Created 560 | 94 . 190 148 128 Parts 46 | 13 . 12 17 4 Haulers Intercepted . | . . . . . Recyclers Shooed . | . . . . . Parts Field Recycled . | . . . . . Retrieved Matter . | . . . . . Parts Self-Destructed 7 | . . . 7 . Prevented . | . . . . . Kills | -11 -10 -10 -10 -8 ------- Run | Yrd Mat Min Sub Mat Combat Hostiles Destroyed 11 | . . 4 4 3 Melee 3 | . . . . 3 Guns 8 | . . 4 4 . Classes Destroyed 6 | 2 . 1 1 2 Tunneler 2 | 2 . . . . Recycler 1 | 1 . . . . Swarmer 1 | . . . . 1 Grunt 6 | . . 4 1 1 Brawler 1 | . . . . 1 Subdweller 3 | . . . 3 . Best Kill Streak 3 | 2 . 2 2 3 Combat Bots Only 3 | . . 2 2 3 Max Kills in Single Turn 1 | 1 . 1 1 1 Gunslinging . | . . . . . Exploded . | . . . . . Melee 1 | . . . . 1 Uniques/NPCs Destroyed . | . . . . . Combat | -11 -10 -10 -10 -8 -------- Run | Yrd Mat Min Sub Mat Hostile Shots Fired 77 | . . 22 34 21 Missed 21 | . . 5 11 5 Damage Taken 1151 | . . 213 712 226 Core 246 | . . 25 101 120 Absorbed by Shields . | . . . . . Core Remaining (%) 74 | 100 . . 49 . Volleys Fired 81 | 17 . 15 49 . Largest 2 | 1 . 2 2 . Hottest 100 | 20 . 40 100 . Shots Fired 108 | 17 . 30 61 . Gun 85 | 17 . 30 38 . Cannon . | . . . . . Launcher . | . . . . . Special 23 | . . . 23 . Kinetic 79 | 17 . 30 32 . Thermal 23 | . . . 23 . Explosive . | . . . . . Electromagnetic 6 | . . . 6 . Robot Hit Streak 20 | 4 . 14 20 . Robot Miss Streak 2 | 2 . 1 1 . Penetration Max . | . . . . . Secondary Targets . | . . . . . Shots Hit Robots 84 | 12 . 28 36 8 Core Hits 28 | 5 . 10 10 3 Critical Kills . | . . . . . Critical Parts Destroyed . | . . . . . Critical Strikes 1 | . . . . 1 Impale 1 | . . . . 1 Melee Attacks 20 | . . . 3 17 Impact 3 | . . . . 3 Slashing 3 | . . . 3 . Piercing 14 | . . . . 14 Sneak Attacks . | . . . . . Combat Hostiles . | . . . . . Follow-up Attacks 3 | . . . . 3 Damage Inflicted 1173 | 94 . 349 507 223 Guns 870 | 94 . 349 427 . Cannons . | . . . . . Explosions . | . . . . . Melee 303 | . . . 80 223 Ramming . | . . . . . Kinetic 798 | 94 . 349 355 . Thermal . | . . . . . Explosive . | . . . . . Electromagnetic 72 | . . . 72 . Impact 41 | . . . . 41 Slashing 80 | . . . 80 . Piercing 182 | . . . . 182 Highest Corruption 3 | . . . 2 3 Average Corruption 2 | . . . 2 3 Corruption Purged . | . . . . . Corruption Blocked . | . . . . . Effects 1 | . . . 1 . Energy Discharges 1 | . . . 1 . Overload Shots . | . . . . . Overflow Damage 18 | . . . 18 . Projectiles . | . . . . . Explosions . | . . . . . Melee 18 | . . . 18 . Knockbacks . | . . . . . Impact . | . . . . . Kinetic . | . . . . . Secondary . | . . . . . Self-Inflicted Damage . | . . . . . Shots . | . . . . . Rammed . | . . . . . Targets Rammed . | . . . . . Kicked . | . . . . . Crushed . | . . . . . Highest Temperature 261 | . . 17 261 . Average Temperature 87 | . . 7 162 . Received Heat Transfer 576 | . . 120 420 36 Siege Activations . | . . . . . Robots Corrupted . | . . . . . Combat Hostiles . | . . . . . Parts Fried . | . . . . . Impact Corruptions . | . . . . . Robots Melted . | . . . . . Combat Hostiles . | . . . . . Parts Melted . | . . . . . Heat Transferred . | . . . . . Parts Sabotaged . | . . . . . Parts Stolen . | . . . . . Parts Stripped . | . . . . . Power Chain Reactions . | . . . . . Alert | -11 -10 -10 -10 -8 ------- Run | Yrd Mat Min Sub Mat Peak Influence 109 | 15 24 109 . 70 Initial 9 | . 9 9 . . Average 29 | 7 10 32 . 27 Maximum Alert Level . | . . . . . Low Security (%) 100 | 100 100 100 . 100 Level 1 . | . . . . . Level 2 . | . . . . . Level 3 . | . . . . . Level 4 . | . . . . . Level 5 . | . . . . . High Security . | . . . . . Max Security . | . . . . . Squads Dispatched . | . . . . . Investigation . | . . . . . Extermination . | . . . . . Reinforcement . | . . . . . Assault . | . . . . . Garrison . | . . . . . Intercept . | . . . . . Searches Triggered . | . . . . . Construction Impeded . | . . . . . Haulers Reinforced . | . . . . . Active Scanning Responses . | . . . . . Cargo Convoy Interrupts . | . . . . . Stealth | -11 -10 -10 -10 -8 --------- Run | Yrd Mat Min Sub Mat Distress Signals . | . . . . . Communications Jammed . | . . . . . Distress Signals . | . . . . . Times Spotted 17 | . 2 4 5 6 Peak Tracking Total 4 | . 2 2 1 4 Tactical Retreats 1 | . . . 1 . Traps | -11 -10 -10 -10 -8 ------- Run | Yrd Mat Min Sub Mat Traps Triggered 1 | . . . 1 . Indirectly . | . . . . . Trap Hack Attempts . | . . . . . Triggered . | . . . . . Disarmed . | . . . . . Reprogrammed . | . . . . . Reused . | . . . . . Traps Extracted . | . . . . . Installed . | . . . . . Triggered . | . . . . . Machines | -11 -10 -10 -10 -8 ---------- Run | Yrd Mat Min Sub Mat Machines Disabled . | . . . . . Max in Single Turn . | . . . . . Machines Repaired . | . . . . . Machines Dismantled . | . . . . . Machines Sabotaged . | . . . . . Overloaded Fab Kills . | . . . . . Hacking | -11 -10 -10 -10 -8 --------- Run | Yrd Mat Min Sub Mat Machines Accessed 2 | . 2 . . . Terminals 2 | . 2 . . . Fabricators . | . . . . . Repair Stations . | . . . . . Recycling Units . | . . . . . Scanalyzers . | . . . . . Garrison Access . | . . . . . Total Hacks 6 | . 6 . . . Successful 3 | . 3 . . . Failed 3 | . 3 . . . Catastrophic 1 | . 1 . . . Database Lockouts . | . . . . . Manual 4 | . 4 . . . Terminals 6 | . 6 . . . Fabricators . | . . . . . Repair Stations . | . . . . . Recycling Units . | . . . . . Scanalyzers . | . . . . . Garrison Access . | . . . . . Terminal Hacks 2 | . 2 . . . Robot Analysis 1 | . 1 . . . Locate Traps 1 | . 1 . . . Fabricator Hacks . | . . . . . Repair Station Hacks . | . . . . . Recycling Unit Hacks . | . . . . . Scanalyzer . | . . . . . Garrison Access Hacks . | . . . . . Unauthorized Hacks 1 | . 1 . . . Terminals 1 | . 1 . . . Botnet 1 | . 1 . . . Fabricators . | . . . . . Repair Stations . | . . . . . Recycling Units . | . . . . . Scanalyzers . | . . . . . Garrison Access . | . . . . . Data Cores Recovered . | . . . . . Used . | . . . . . Hacking Detections 2 | . 2 . . . Full Trace Events . | . . . . . Feedback Events . | . . . . . Feedback Blocked . | . . . . . Robot Schematics Acquired . | . . . . . Robots Built . | . . . . . Authchips . | . . . . . Time . | . . . . . Total Robot Build Rating . | . . . . . Part Schematics Acquired . | . . . . . Parts Built . | . . . . . Authchips . | . . . . . Time . | . . . . . Total Part Build Rating . | . . . . . Parts Repaired . | . . . . . Time . | . . . . . Parts Recycled . | . . . . . Recycled Matter . | . . . . . Retrieved Matter . | . . . . . Retrieved Components . | . . . . . Parts Scanalyzed . | . . . . . Part Schematics Acquired . | . . . . . Parts Damaged . | . . . . . Bothacking | -11 -10 -10 -10 -8 ------------ Run | Yrd Mat Min Sub Mat Used RIF Installer . | . . . . . Robots Hacked . | . . . . . Non-combat . | . . . . . Combat . | . . . . . Robot Hacks Applied . | . . . . . Relay Couplers Released . | . . . . . Fabnet Peak Effective % . | . . . . . Robots Rewired . | . . . . . Allies Hacked . | . . . . . Hacks Repelled . | . . . . . Allies | -11 -10 -10 -10 -8 -------- Run | Yrd Mat Min Sub Mat Total Allies . | . . . . . Largest Group . | . . . . . Highest-Rated Group . | . . . . . Highest-Rated Ally . | . . . . . Total Orders . | . . . . . Ally Attacks . | . . . . . Total Damage . | . . . . . Kills . | . . . . . Allies Corrupted . | . . . . . Allies Melted . | . . . . . Intel | -11 -10 -10 -10 -8 ------- Run | Yrd Mat Min Sub Mat Robot Analysis Total 1 | . 1 . . . Derelict Logs Recovered 1 | . . 1 . . Drone Launches . | . . . . . Drone Recoveries . | . . . . . Exploration | -11 -10 -10 -10 -8 ------------- Run | Yrd Mat Min Sub Mat Turns Passed 2368 | 118 105 1144 933 68 Spaces Moved 1261 | 72 97 497 577 18 Core 66 | 3 . . 50 13 Treads 5 | . . . . 5 Legs 966 | . . 439 527 . Wheels 224 | 69 97 58 . . Hover . | . . . . . Flight . | . . . . . Fastest Speed 50 | 50 100 100 120 160 Average Speed 120 | 97 100 117 126 188 Slowest Speed 200 | 100 100 190 200 200 Overloaded Moves . | . . . . . Propulsion Burnouts . | . . . . . Robots Hopped . | . . . . . Cave-ins Triggered 1 | . . . 1 . Exploration Rate (%) 31 | 6 28 88 33 3 Regions Visited 4 Branch Regions 2 Pre-discovered Areas . | . . . . . Known Exits Taken . | . . . . . Unknown Exits Taken 4 | 1 1 1 1 . Scrap Searched 9 | . . 1 8 . Spaces Dug 2 | . . . 2 . Terrain Destroyed 2 | . . . 2 . Melee . | . . . . . Projectile 2 | . . . 2 . AOE . | . . . . . Terrain Rammed . | . . . . . Walls Destroyed . | . . . . . Machines Disabled . | . . . . . Actions | -11 -10 -10 -10 -8 --------- Run | Yrd Mat Min Sub Mat Total 1932 | 102 105 1026 663 36 Wait 523 | . . 502 19 2 Move 1257 | 71 96 496 576 18 Hop . | . . . . . Pick Up 13 | 4 4 2 3 . Fast Attach 14 | 8 1 3 1 1 Attach 4 | . . . 3 1 Detach 2 | 1 1 . . . Swap 9 | . 1 2 6 . Drop 12 | 1 2 6 3 . Fire 81 | 17 . 15 49 . Melee 17 | . . . 3 14 Ram . | . . . . . Kick . | . . . . . Crush . | . . . . . Escape Stasis . | . . . . . Rewire . | . . . . . Trap . | . . . . . Miscellaneous . | . . . . . Route ------- -11/Scrapyard -10/Materials -10/Mines (discovered 3 exits: *Mat x2 / [*Sub]) -10/Subcaves -8/Materials History --------- Turn | Location | Event 13 | -11/Scrapyard | Discovered new exit (range 16) 119 | -11/Scrapyard | Entered Materials 215 | -10/Materials | Discovered new exit (range 9) 224 | -10/Materials | Entered Mines 305 | -10/Mines | Build established: Mutant 358 | -10/Mines | Identified exit to Materials 482 | -10/Mines | Found a damaged Exp. Sensor Array with a note attached 488 | -10/Mines | Found Prototype Device 488 | -10/Mines | Identified Exp. Sensor Array 757 | -10/Mines | Discovered exit to Materials (range 3) 1351 | -10/Mines | Discovered new exit (range 5) 1368 | -10/Mines | Entered Subcaves 1391 | -10/Subcaves | A swath of the cavern ceiling suddenly collapsed 1772 | -10/Subcaves | Discovered new exit (range 5) 2154 | -10/Subcaves | Ambushed by Subdweller buried in earth 2195 | -10/Subcaves | Core integrity fell below 50% 2198 | -10/Subcaves | Crushed by falling debris 2229 | -10/Subcaves | Lost 7 parts (1p2n1u3w) 2301 | -10/Subcaves | Entered Materials 2301 | -8/Materials | Evolved 4 slots: Propulsion x2, Utility x1, Weapon x1 2369 | -8/Materials | Self-destructed Last Messages --------------- 02209_ Searching scrap... 02209_ Found Sub. Laser. 02209_ Found 66 Matter. 02210_ Acquired 51 matter. 02289_ System corrupted: Energy discharge (-23). PARAMETERS=PROPULSION+2,UTILITY+1,WEAPON+1 LOCATION=UNKNOWN GOAL=ESCAPE 02332_ Mak. Sword destroyed. 02332_ System corrupted by crushing effect (+3). 02332_ B-36 Bruiser suffers critical hit (Impale). 02332_ B-36 Bruiser destroyed. 02341_ Mak. Hammer follow-up attack on G-47 Trooper. 02343_ G-47 Trooper destroyed. 02344_ Acquired 5 matter. 02347_ Acquired Lgt. Treads. 02350_ R-06 Scavenger collects Aluminum Leg. 02351_ Acquired 10 matter. 02356_ S-10 Pest destroyed. 02361_ Mak. Hammer follow-up attack on S-10 Pest. Map ----- +----------------------------------------------------+ | ???????????????????????????????????? | | ???????????????????????????????????? | | ???????????????????????????????????? | | ???????????????????????????????????? | | ???????????????????????????????????? | | ???????????????????????????????????? | | ???????????????????????????????????? | | ???????????????????????????????????? | | ???????????????????????????????????? | | ???????????????????????????????????? | | ???????????????????????????????????? | | ?????????????????????????##????????? | | ????????????????????????? ????????? | | ????????????????????????? #???????? | | ????????????????????????? #???????? | | ????????????????????????? #???????? | | ????????????????????????? #???????? | | ????????????????????????# #???????? | | ???????????????????????##s #???????? | | ???????????????????????? ????????? | | ???????????????????????? ????????? | | ???????????????????????? T????????? | | ???????????????????????? ????????? | | ????????????????????????#s#????????? | | ????????????????????????# #????????? | | ????????????????????????#@#????????? | | ????????????????????????#%#????????? | | ????????????????????????#=#????????? | | ????????????????????????#%#????????? | | ????????????????#########u#????????? | | ????????????????# !% #????????? | | ????????????????# #????????? | | ????????????????#!!! #????????? | | ????????????????#!!! [ #????????? | | ????????????????#!! ! #????????? | | ????????????????# #????????? | | ????????????????# #????????? | | ??????????###???# #????????? | | ??????????# ###+#######????????? | | ??????????# #???????????? | | ??????????# #???????????? | | ?????????+ #???????????? | | ?????????## ########???????????? | | ??????????## #???????????????????? | | ???????????# ????????????????????? | | ???????????# ?????????????????????? | | ???????????# ??????????????????????? | | ??????????? ???????????????????????? | | ?????????? ????????????????????????? | | ?????????"?????????????????????????? | +----------------------------------------------------+ Best States ------------- Heat Dissipation 35 Energy Generation 10 Energy Capacity 250 Matter Stores 300 Matter Capacity 300 Sight Range 21 Robot Scan Range 20 Terrain Scan Range 16 Terrain Scan Density 10 Evasion (%) 55 Recoil Reduction 1 Item Schematics ----------------- None Robot Schematics ------------------ None Fabricated ------------ Nothing Alien Tech Used ----------------- None Achievements -------------- None Challenges ------------ None Game ------ Seed StorageDroneCompactor Manual? 0 Play Time 00:14:40 Cumulative 69.9 hours Start 2025.03.14 @ 15:27:37 End 2025.03.14 @ 15:41:39 Sessions 1 Manual Loads 0 Difficulty Rogue Special Mode None Game No. 102 Rogue 102 Adventurer 0 Explorer 0 Win Type - Total 1 Types 1/0/0/0/0/0/0/0/0 Lore% 30 Gallery% 45 Achievement% 39 Wizard Run 0 Options --------- Layout 1 ASCII 1 Keyboard 0 Movement Numpad Keybinds 0 Fullscreen 1 Font 48/Smallcaps Map View 76x35 Zoom Use 0% Tactical HUD 1 Map Filters NONE Filters NONE Steam 1 RUN: ee38b5be-83d8-44f5-b7d4-53f5137602c7